[Event "Titled Tuesday Blitz May 9 Early 2023"]
[White "Papasimakopoulos, Alexandros"]
[Black "Rom, Jasper"]
[WhiteFideId "4244125"]
[BlackFideId "2023733"]
[WhiteElo "2359"]
[BlackElo "2233"]
[Result "1-0"]
[Round "04"]
[TimeControl "180+2"]
[Date "2023.05.09"]
[WhiteClock "0:00:06"]
[BlackClock "0:00:00"]

1. d4 {[%clk 0:03:00]}  d5 {[%clk 0:02:54]} 2. c4 {[%clk 0:03:00]}  e6 {[%clk 0:02:54]} 3. Nc3 {[%clk 0:03:00]}  c6 {[%clk 0:02:54]} 4. Nf3 {[%clk 0:02:57]}  dxc4 {[%clk 0:02:53]} 5. a4 {[%clk 0:02:57]}  Bb4 {[%clk 0:02:52]} 6. e3 {[%clk 0:02:57]}  b5 {[%clk 0:02:52]} 7. Bd2 {[%clk 0:02:56]}  a5 {[%clk 0:02:51]} 8. Rb1 {[%clk 0:02:56]}  Qb6 {[%clk 0:02:39]} 9. b3 {[%clk 0:02:42]}  Bxc3 {[%clk 0:02:20]} 10. Bxc3 {[%clk 0:02:42]}  cxb3 {[%clk 0:02:20]} 11. Qxb3 {[%clk 0:02:25]}  b4 {[%clk 0:02:20]} 12. Bc4 {[%clk 0:02:06]}  Nf6 {[%clk 0:02:13]} 13. O-O {[%clk 0:02:04]}  O-O {[%clk 0:02:12]} 14. Ba1 {[%clk 0:02:00]}  Nbd7 {[%clk 0:01:41]} 15. Rfc1 {[%clk 0:02:00]}  Nd5 {[%clk 0:01:21]} 16. e4 {[%clk 0:01:58]}  N5f6 {[%clk 0:01:21]} 17. Qe3 {[%clk 0:01:45]}  Bb7 {[%clk 0:01:04]} 18. Bb3 {[%clk 0:01:30]}  Rac8 {[%clk 0:00:57]} 19. Nd2 {[%clk 0:01:28]}  c5 {[%clk 0:00:44]} 20. dxc5 {[%clk 0:01:17]}  Rxc5 {[%clk 0:00:44]} 21. Nc4 {[%clk 0:00:47]}  Qc7 {[%clk 0:00:22]} 22. Bd4 {[%clk 0:00:47]}  Bxe4 {[%clk 0:00:12]} 23. Bxc5 {[%clk 0:00:39]}  Qxc5 {[%clk 0:00:12]} 24. Ra1 {[%clk 0:00:34]}  Qxe3 {[%clk 0:00:11]} 25. fxe3 {[%clk 0:00:30]}  Ra8 {[%clk 0:00:07]} 26. Nd2 {[%clk 0:00:29]}  Bd5 {[%clk 0:00:06]} 27. Rc7 {[%clk 0:00:26]}  Ne5 {[%clk 0:00:02]} 28. Rac1 {[%clk 0:00:21]}  h6 {[%clk 0:00:02]} 29. Rc8+ {[%clk 0:00:22]}  Rxc8 {[%clk 0:00:02]} 30. Rxc8+ {[%clk 0:00:23]}  Kh7 {[%clk 0:00:03]} 31. Rc5 {[%clk 0:00:21]}  Nd3 {[%clk 0:00:01]} 32. Rxa5 {[%clk 0:00:20]}  Nc1 {[%clk 0:00:01]} 33. Bxd5 {[%clk 0:00:19]}  Nxd5 {[%clk 0:00:02]} 34. e4 {[%clk 0:00:19]}  Nc3 {[%clk 0:00:03]} 35. Ra7 {[%clk 0:00:18]}  b3 {[%clk 0:00:03]} 36. Rb7 {[%clk 0:00:19]}  Nxa4 {[%clk 0:00:03]} 37. Nxb3 {[%clk 0:00:18]}  Nxb3 {[%clk 0:00:03]} 38. Rxb3 {[%clk 0:00:19]}  Nc5 {[%clk 0:00:04]} 39. Re3 {[%clk 0:00:20]}  e5 {[%clk 0:00:04]} 40. Kf2 {[%clk 0:00:20]}  f6 {[%clk 0:00:04]} 41. Kf3 {[%clk 0:00:20]}  Ne6 {[%clk 0:00:05]} 42. Ra3 {[%clk 0:00:20]}  Nd4+ {[%clk 0:00:05]} 43. Kf2 {[%clk 0:00:21]}  Kg6 {[%clk 0:00:05]} 44. Ra7 {[%clk 0:00:21]}  Kh7 {[%clk 0:00:05]} 45. Ke3 {[%clk 0:00:21]}  Kg6 {[%clk 0:00:05]} 46. Kd3 {[%clk 0:00:21]}  Ne6 {[%clk 0:00:04]} 47. g3 {[%clk 0:00:20]}  h5 {[%clk 0:00:03]} 48. Kc4 {[%clk 0:00:19]}  Ng5 {[%clk 0:00:03]} 49. Kd5 {[%clk 0:00:19]}  Nf3 {[%clk 0:00:03]} 50. Ra2 {[%clk 0:00:19]}  Ng5 {[%clk 0:00:02]} 51. Re2 {[%clk 0:00:18]}  Nf3 {[%clk 0:00:02]} 52. Kd6 {[%clk 0:00:17]}  Nd4 {[%clk 0:00:02]} 53. Rf2 {[%clk 0:00:16]}  Kf7 {[%clk 0:00:02]} 54. Ra2 {[%clk 0:00:13]}  Nf3 {[%clk 0:00:01]} 55. Rb2 {[%clk 0:00:12]}  Kg6 {[%clk 0:00:01]} 56. Ke7 {[%clk 0:00:11]}  Ng5 {[%clk 0:00:02]} 57. Re2 {[%clk 0:00:11]}  Nf3 {[%clk 0:00:02]} 58. Kf8 {[%clk 0:00:11]}  Ng5 {[%clk 0:00:02]} 59. Kg8 {[%clk 0:00:11]}  Ne6 {[%clk 0:00:02]} 60. Ra2 {[%clk 0:00:10]}  Ng5 {[%clk 0:00:02]} 61. Ra4 {[%clk 0:00:10]}  Ne6 {[%clk 0:00:01]} 62. Ra7 {[%clk 0:00:10]}  Kh6 {[%clk 0:00:02]} 63. h4 {[%clk 0:00:09]}  Kg6 {[%clk 0:00:02]} 64. Re7 {[%clk 0:00:08]}  Nc5 {[%clk 0:00:01]} 65. Rxg7+ {[%clk 0:00:08]}  Kh6 {[%clk 0:00:01]} 66. Rf7 {[%clk 0:00:07]}  Nxe4 {[%clk 0:00:00]} 67. Rf8 {[%clk 0:00:06]} 1-0


[Site "https://www.chess.com"]

[Event "Titled Tuesday Blitz May 9 Early 2023"]
[White "Kucuksari, Kaan"]
[Black "The_Sherman_Variation"]
[WhiteFideId "6380166"]
[WhiteElo "2364"]
[BlackElo "2515"]
[Result "1-0"]
[Round "04"]
[TimeControl "180+2"]
[Date "2023.05.09"]
[WhiteClock "0:01:59"]
[BlackClock "0:01:46"]

1. e4 {[%clk 0:03:00]}  c5 {[%clk 0:02:57]} 2. Nf3 {[%clk 0:03:01]}  g6 {[%clk 0:02:57]} 3. d4 {[%clk 0:03:00]}  cxd4 {[%clk 0:02:58]} 4. Nxd4 {[%clk 0:03:01]}  Bg7 {[%clk 0:02:58]} 5. c4 {[%clk 0:03:01]}  Nc6 {[%clk 0:02:59]} 6. Be3 {[%clk 0:02:59]}  d6 {[%clk 0:02:59]} 7. Nc3 {[%clk 0:02:59]}  Nf6 {[%clk 0:02:59]} 8. Be2 {[%clk 0:02:59]}  O-O {[%clk 0:02:59]} 9. O-O {[%clk 0:02:59]}  Bd7 {[%clk 0:03:00]} 10. h3 {[%clk 0:02:58]}  Nxd4 {[%clk 0:03:00]} 11. Bxd4 {[%clk 0:02:59]}  Bc6 {[%clk 0:03:00]} 12. Nd5 {[%clk 0:02:58]}  Nxd5 {[%clk 0:02:59]} 13. exd5 {[%clk 0:02:52]}  Bxd4 {[%clk 0:02:56]} 14. Qxd4 {[%clk 0:02:43]}  Bd7 {[%clk 0:02:55]} 15. Rfe1 {[%clk 0:02:42]}  Qb6 {[%clk 0:02:50]} 16. Qxb6 {[%clk 0:02:41]}  axb6 {[%clk 0:02:51]} 17. Bf1 {[%clk 0:02:38]}  Rfe8 {[%clk 0:02:51]} 18. a3 {[%clk 0:02:36]}  Kf8 {[%clk 0:02:48]} 19. Rad1 {[%clk 0:02:29]}  Rec8 {[%clk 0:02:44]} 20. Re3 {[%clk 0:02:28]}  Rc7 {[%clk 0:02:43]} 21. Rb3 {[%clk 0:02:27]}  b5 {[%clk 0:02:36]} 22. cxb5 {[%clk 0:02:26]}  Rac8 {[%clk 0:02:33]} 23. Kh2 {[%clk 0:02:22]}  Rc2 {[%clk 0:02:32]} 24. Kg3 {[%clk 0:02:18]}  R8c5 {[%clk 0:02:30]} 25. a4 {[%clk 0:02:17]}  Bf5 {[%clk 0:02:18]} 26. a5 {[%clk 0:02:15]}  Be4 {[%clk 0:02:17]} 27. a6 {[%clk 0:02:14]}  bxa6 {[%clk 0:02:11]} 28. bxa6 {[%clk 0:02:15]}  Rxd5 {[%clk 0:02:05]} 29. Re1 {[%clk 0:02:04]}  Rd4 {[%clk 0:01:50]} 30. Rxe4 {[%clk 0:02:01]}  Rxe4 {[%clk 0:01:46]} 31. Bd3 {[%clk 0:01:59]} 1-0


[Site "https://www.chess.com"]

[Event "Titled Tuesday Blitz May 9 Early 2023"]
[White "bubeliang"]
[Black "Ciolacu, Alessia-Mihaela"]
[BlackFideId "1252640"]
[WhiteElo "2652"]
[BlackElo "1937"]
[Result "1-0"]
[Round "04"]
[TimeControl "180+2"]
[Date "2023.05.09"]
[WhiteClock "0:00:18"]
[BlackClock "0:00:23"]

1. e4 {[%clk 0:03:00]}  c5 {[%clk 0:02:57]} 2. c3 {[%clk 0:03:00]}  Nf6 {[%clk 0:02:56]} 3. e5 {[%clk 0:03:00]}  Nd5 {[%clk 0:02:56]} 4. Nf3 {[%clk 0:03:00]}  d6 {[%clk 0:02:53]} 5. exd6 {[%clk 0:02:59]}  Qxd6 {[%clk 0:02:52]} 6. d4 {[%clk 0:02:58]}  cxd4 {[%clk 0:02:50]} 7. Nxd4 {[%clk 0:02:58]}  e6 {[%clk 0:02:47]} 8. Nb5 {[%clk 0:02:50]}  Qd7 {[%clk 0:02:45]} 9. Be2 {[%clk 0:02:32]}  a6 {[%clk 0:02:43]} 10. Nd4 {[%clk 0:02:32]}  Nc6 {[%clk 0:02:40]} 11. O-O {[%clk 0:02:30]}  Nxd4 {[%clk 0:02:36]} 12. Qxd4 {[%clk 0:02:27]}  Nf6 {[%clk 0:02:31]} 13. Qxd7+ {[%clk 0:02:21]}  Bxd7 {[%clk 0:02:31]} 14. Bf3 {[%clk 0:02:22]}  Nd5 {[%clk 0:02:25]} 15. Nd2 {[%clk 0:02:16]}  Be7 {[%clk 0:02:22]} 16. Re1 {[%clk 0:02:13]}  Bc6 {[%clk 0:02:20]} 17. Nc4 {[%clk 0:02:08]}  Rd8 {[%clk 0:02:07]} 18. Be3 {[%clk 0:01:56]}  O-O {[%clk 0:01:59]} 19. Ne5 {[%clk 0:01:45]}  Be8 {[%clk 0:01:52]} 20. Rad1 {[%clk 0:01:38]}  Nxe3 {[%clk 0:01:38]} 21. Rxd8 {[%clk 0:01:35]}  Bxd8 {[%clk 0:01:38]} 22. Rxe3 {[%clk 0:01:34]}  b5 {[%clk 0:01:30]} 23. Bc6 {[%clk 0:01:30]}  Bb6 {[%clk 0:01:22]} 24. Rd3 {[%clk 0:01:26]}  f6 {[%clk 0:01:12]} 25. Nd7 {[%clk 0:01:21]}  Bxd7 {[%clk 0:01:09]} 26. Bxd7 {[%clk 0:01:18]}  e5 {[%clk 0:01:07]} 27. Be6+ {[%clk 0:01:12]}  Kh8 {[%clk 0:01:07]} 28. c4 {[%clk 0:01:07]}  Bd4 {[%clk 0:01:00]} 29. b3 {[%clk 0:01:04]}  Re8 {[%clk 0:00:54]} 30. Bd5 {[%clk 0:00:54]}  Rd8 {[%clk 0:00:54]} 31. Kf1 {[%clk 0:00:50]}  g6 {[%clk 0:00:52]} 32. Ke2 {[%clk 0:00:48]}  f5 {[%clk 0:00:50]} 33. f4 {[%clk 0:00:44]}  Kg7 {[%clk 0:00:46]} 34. fxe5 {[%clk 0:00:43]}  Bxe5 {[%clk 0:00:45]} 35. h3 {[%clk 0:00:40]}  bxc4 {[%clk 0:00:43]} 36. bxc4 {[%clk 0:00:35]}  Kf6 {[%clk 0:00:39]} 37. Rb3 {[%clk 0:00:32]}  Bd4 {[%clk 0:00:37]} 38. Rb7 {[%clk 0:00:28]}  Rd6 {[%clk 0:00:34]} 39. Rxh7 {[%clk 0:00:27]}  Ke5 {[%clk 0:00:31]} 40. Kd3 {[%clk 0:00:23]}  Bg1 {[%clk 0:00:31]} 41. g3 {[%clk 0:00:22]}  Bf2 {[%clk 0:00:29]} 42. Re7+ {[%clk 0:00:19]}  Kf6 {[%clk 0:00:29]} 43. Rf7+ {[%clk 0:00:19]}  Ke5 {[%clk 0:00:27]} 44. g4 {[%clk 0:00:19]}  fxg4 {[%clk 0:00:26]} 45. Rxf2 {[%clk 0:00:18]}  gxh3 {[%clk 0:00:25]} 46. Rh2 {[%clk 0:00:17]}  g5 {[%clk 0:00:23]} 47. Rxh3 {[%clk 0:00:18]} 1-0


[Site "https://www.chess.com"]

[Event "Titled Tuesday Blitz May 9 Early 2023"]
[White "Wadsworth, Matthew J"]
[Black "Toktomushev, Teimur"]
[WhiteFideId "415804"]
[BlackFideId "14176726"]
[WhiteElo "2347"]
[BlackElo "2116"]
[Result "1-0"]
[Round "04"]
[TimeControl "180+2"]
[Date "2023.05.09"]
[WhiteClock "0:00:11"]
[BlackClock "0:00:01"]

1. d4 {[%clk 0:03:00]}  d5 {[%clk 0:02:59]} 2. Bf4 {[%clk 0:03:00]}  Nf6 {[%clk 0:02:59]} 3. e3 {[%clk 0:03:00]}  c5 {[%clk 0:02:59]} 4. c3 {[%clk 0:02:58]}  Nc6 {[%clk 0:02:56]} 5. Nd2 {[%clk 0:02:54]}  Bf5 {[%clk 0:02:56]} 6. Ngf3 {[%clk 0:02:53]}  e6 {[%clk 0:02:55]} 7. Nh4 {[%clk 0:02:52]}  Be4 {[%clk 0:02:53]} 8. f3 {[%clk 0:02:40]}  Bg6 {[%clk 0:02:52]} 9. Nxg6 {[%clk 0:02:38]}  hxg6 {[%clk 0:02:53]} 10. Bd3 {[%clk 0:02:38]}  Bd6 {[%clk 0:02:52]} 11. Bxd6 {[%clk 0:02:26]}  Qxd6 {[%clk 0:02:53]} 12. f4 {[%clk 0:02:26]}  cxd4 {[%clk 0:02:04]} 13. cxd4 {[%clk 0:02:25]}  Ke7 {[%clk 0:01:59]} 14. O-O {[%clk 0:02:22]}  a6 {[%clk 0:01:56]} 15. Nf3 {[%clk 0:02:20]}  Rac8 {[%clk 0:01:32]} 16. Ne5 {[%clk 0:02:18]}  Nd7 {[%clk 0:01:22]} 17. Qg4 {[%clk 0:02:11]}  Rh6 {[%clk 0:01:08]} 18. Qg5+ {[%clk 0:01:55]}  Kf8 {[%clk 0:00:26]} 19. Rac1 {[%clk 0:01:54]}  Kg8 {[%clk 0:00:13]} 20. Qg3 {[%clk 0:01:31]}  Rc7 {[%clk 0:00:08]} 21. Ng4 {[%clk 0:01:15]}  Rh5 {[%clk 0:00:05]} 22. a3 {[%clk 0:01:11]}  Ne7 {[%clk 0:00:02]} 23. Ne5 {[%clk 0:01:09]}  Nf5 {[%clk 0:00:02]} 24. Qe1 {[%clk 0:01:07]}  Rxc1 {[%clk 0:00:02]} 25. Qxc1 {[%clk 0:01:07]}  Rh8 {[%clk 0:00:02]} 26. Qc8+ {[%clk 0:01:05]}  Nf8 {[%clk 0:00:02]} 27. Bxf5 {[%clk 0:00:52]}  gxf5 {[%clk 0:00:02]} 28. Qe8 {[%clk 0:00:47]}  Qc7 {[%clk 0:00:02]} 29. h3 {[%clk 0:00:43]}  Rh6 {[%clk 0:00:02]} 30. Kh2 {[%clk 0:00:42]}  f6 {[%clk 0:00:02]} 31. Nf3 {[%clk 0:00:39]}  Qd7 {[%clk 0:00:02]} 32. Qxd7 {[%clk 0:00:37]}  Nxd7 {[%clk 0:00:03]} 33. Rc1 {[%clk 0:00:37]}  Kf7 {[%clk 0:00:03]} 34. Rc7 {[%clk 0:00:37]}  Ke7 {[%clk 0:00:04]} 35. Rxb7 {[%clk 0:00:37]}  Rh8 {[%clk 0:00:04]} 36. Ra7 {[%clk 0:00:37]}  Rc8 {[%clk 0:00:05]} 37. Rxa6 {[%clk 0:00:35]}  Rc2 {[%clk 0:00:05]} 38. b4 {[%clk 0:00:34]}  Rc3 {[%clk 0:00:04]} 39. b5 {[%clk 0:00:33]}  Rxe3 {[%clk 0:00:02]} 40. a4 {[%clk 0:00:33]}  Rb3 {[%clk 0:00:02]} 41. Ra7 {[%clk 0:00:26]}  Rb4 {[%clk 0:00:01]} 42. Kg3 {[%clk 0:00:25]}  Kd8 {[%clk 0:00:02]} 43. Kf2 {[%clk 0:00:23]}  g6 {[%clk 0:00:02]} 44. Ke3 {[%clk 0:00:22]}  Nb6 {[%clk 0:00:03]} 45. Rg7 {[%clk 0:00:19]}  Rxa4 {[%clk 0:00:02]} 46. Rxg6 {[%clk 0:00:19]}  Ke7 {[%clk 0:00:02]} 47. Rg7+ {[%clk 0:00:19]}  Kf8 {[%clk 0:00:02]} 48. Rb7 {[%clk 0:00:19]}  Nc4+ {[%clk 0:00:02]} 49. Kf2 {[%clk 0:00:19]}  Ra2+ {[%clk 0:00:02]} 50. Kg3 {[%clk 0:00:19]}  Rb2 {[%clk 0:00:03]} 51. h4 {[%clk 0:00:18]}  Ne3 {[%clk 0:00:02]} 52. Ne1 {[%clk 0:00:18]}  Nf1+ {[%clk 0:00:02]} 53. Kf3 {[%clk 0:00:18]}  Nd2+ {[%clk 0:00:02]} 54. Ke3 {[%clk 0:00:18]}  Nc4+ {[%clk 0:00:02]} 55. Kf3 {[%clk 0:00:17]}  Nd2+ {[%clk 0:00:02]} 56. Kg3 {[%clk 0:00:17]}  Nf1+ {[%clk 0:00:01]} 57. Kh3 {[%clk 0:00:17]}  Nd2 {[%clk 0:00:02]} 58. h5 {[%clk 0:00:16]}  Rb3+ {[%clk 0:00:02]} 59. Nf3 {[%clk 0:00:17]}  Nxf3 {[%clk 0:00:02]} 60. gxf3 {[%clk 0:00:17]}  Rxf3+ {[%clk 0:00:03]} 61. Kg2 {[%clk 0:00:17]}  Rxf4 {[%clk 0:00:02]} 62. h6 {[%clk 0:00:17]}  Kg8 {[%clk 0:00:02]} 63. h7+ {[%clk 0:00:16]}  Kh8 {[%clk 0:00:02]} 64. b6 {[%clk 0:00:16]}  Rxd4 {[%clk 0:00:02]} 65. Re7 {[%clk 0:00:16]}  Rb4 {[%clk 0:00:02]} 66. b7 {[%clk 0:00:17]}  e5 {[%clk 0:00:01]} 67. Re8+ {[%clk 0:00:15]}  Kxh7 {[%clk 0:00:02]} 68. b8=Q {[%clk 0:00:15]}  Rxb8 {[%clk 0:00:03]} 69. Rxb8 {[%clk 0:00:15]}  f4 {[%clk 0:00:03]} 70. Kf3 {[%clk 0:00:13]}  Kg6 {[%clk 0:00:03]} 71. Rd8 {[%clk 0:00:13]}  d4 {[%clk 0:00:01]} 72. Ke4 {[%clk 0:00:13]}  Kf7 {[%clk 0:00:01]} 73. Ra8 {[%clk 0:00:12]}  Ke6 {[%clk 0:00:01]} 74. Ra6+ {[%clk 0:00:12]}  Ke7 {[%clk 0:00:02]} 75. Kf5 {[%clk 0:00:12]}  f3 {[%clk 0:00:02]} 76. Ke4 {[%clk 0:00:11]}  f5+ {[%clk 0:00:01]} 77. Kxe5 {[%clk 0:00:10]}  f2 {[%clk 0:00:01]} 78. Ra1 {[%clk 0:00:10]}  d3 {[%clk 0:00:01]} 79. Kd4 {[%clk 0:00:10]}  Ke6 {[%clk 0:00:01]} 80. Kxd3 {[%clk 0:00:10]}  Ke5 {[%clk 0:00:01]} 81. Ke2 {[%clk 0:00:11]} 1-0


[Site "https://www.chess.com"]

[Event "Titled Tuesday Blitz May 9 Early 2023"]
[White "Guerra Tulcan, Lenin"]
[Black "Hadzimanolis, Antonios"]
[WhiteFideId "3601382"]
[BlackFideId "4202813"]
[WhiteElo "2368"]
[BlackElo "2242"]
[Result "1-0"]
[Round "04"]
[TimeControl "180+2"]
[Date "2023.05.09"]
[WhiteClock "0:00:20"]
[BlackClock "0:00:08"]

1. e4 {[%clk 0:03:00]}  e5 {[%clk 0:02:59]} 2. Nf3 {[%clk 0:03:00]}  Nc6 {[%clk 0:02:59]} 3. Bb5 {[%clk 0:02:59]}  a6 {[%clk 0:02:59]} 4. Ba4 {[%clk 0:02:58]}  Nf6 {[%clk 0:02:59]} 5. Qe2 {[%clk 0:02:58]}  b5 {[%clk 0:02:56]} 6. Bb3 {[%clk 0:02:58]}  Be7 {[%clk 0:02:57]} 7. O-O {[%clk 0:02:57]}  O-O {[%clk 0:02:56]} 8. Rd1 {[%clk 0:02:56]}  d6 {[%clk 0:02:50]} 9. c3 {[%clk 0:02:55]}  Na5 {[%clk 0:02:43]} 10. Bc2 {[%clk 0:02:54]}  c5 {[%clk 0:02:43]} 11. d4 {[%clk 0:02:54]}  Qc7 {[%clk 0:02:44]} 12. d5 {[%clk 0:02:53]}  Nc4 {[%clk 0:02:43]} 13. Nbd2 {[%clk 0:02:49]}  Nxd2 {[%clk 0:02:42]} 14. Bxd2 {[%clk 0:02:49]}  Bg4 {[%clk 0:02:35]} 15. h3 {[%clk 0:02:47]}  Bxf3 {[%clk 0:02:35]} 16. Qxf3 {[%clk 0:02:43]}  Ne8 {[%clk 0:02:21]} 17. g4 {[%clk 0:02:42]}  Qd8 {[%clk 0:02:17]} 18. Qg3 {[%clk 0:02:36]}  Bg5 {[%clk 0:02:15]} 19. a4 {[%clk 0:02:21]}  Bxd2 {[%clk 0:01:52]} 20. Rxd2 {[%clk 0:02:19]}  Qg5 {[%clk 0:01:52]} 21. Qe3 {[%clk 0:02:08]}  Qxe3 {[%clk 0:01:34]} 22. fxe3 {[%clk 0:02:09]}  Nc7 {[%clk 0:01:34]} 23. Bd3 {[%clk 0:02:02]}  c4 {[%clk 0:01:27]} 24. Bf1 {[%clk 0:02:01]}  f6 {[%clk 0:01:22]} 25. Rdd1 {[%clk 0:01:42]}  Kf7 {[%clk 0:01:21]} 26. Ra2 {[%clk 0:01:40]}  Ke7 {[%clk 0:01:20]} 27. Rda1 {[%clk 0:01:40]}  Kd7 {[%clk 0:01:19]} 28. Kf2 {[%clk 0:01:35]}  g6 {[%clk 0:01:03]} 29. Ke1 {[%clk 0:01:18]}  Rab8 {[%clk 0:01:00]} 30. axb5 {[%clk 0:01:10]}  axb5 {[%clk 0:00:57]} 31. Ra7 {[%clk 0:01:10]}  Ra8 {[%clk 0:00:55]} 32. Rxa8 {[%clk 0:01:06]}  Rxa8 {[%clk 0:00:54]} 33. Rxa8 {[%clk 0:01:05]}  Nxa8 {[%clk 0:00:55]} 34. b3 {[%clk 0:01:05]}  Nb6 {[%clk 0:00:41]} 35. Kd2 {[%clk 0:01:05]}  Kc7 {[%clk 0:00:38]} 36. Kc2 {[%clk 0:01:05]}  Kb7 {[%clk 0:00:38]} 37. Kb2 {[%clk 0:00:56]}  Ka6 {[%clk 0:00:38]} 38. bxc4 {[%clk 0:00:33]}  bxc4 {[%clk 0:00:37]} 39. Ka3 {[%clk 0:00:32]}  Kb5 {[%clk 0:00:37]} 40. Be2 {[%clk 0:00:32]}  Na4 {[%clk 0:00:25]} 41. Bxc4+ {[%clk 0:00:30]}  Kxc4 {[%clk 0:00:26]} 42. Kxa4 {[%clk 0:00:30]}  Kxc3 {[%clk 0:00:26]} 43. Kb5 {[%clk 0:00:30]}  Kd3 {[%clk 0:00:26]} 44. Kc6 {[%clk 0:00:31]}  Kxe4 {[%clk 0:00:23]} 45. Kxd6 {[%clk 0:00:31]}  Kxe3 {[%clk 0:00:24]} 46. Ke6 {[%clk 0:00:29]}  Kf2 {[%clk 0:00:24]} 47. d6 {[%clk 0:00:29]}  e4 {[%clk 0:00:24]} 48. d7 {[%clk 0:00:30]}  e3 {[%clk 0:00:25]} 49. d8=Q {[%clk 0:00:30]}  e2 {[%clk 0:00:25]} 50. Qd2 {[%clk 0:00:30]}  Kf1 {[%clk 0:00:20]} 51. Qf4+ {[%clk 0:00:24]}  Kg2 {[%clk 0:00:20]} 52. Qe4+ {[%clk 0:00:24]}  Kf2 {[%clk 0:00:19]} 53. Qf4+ {[%clk 0:00:23]}  Kg2 {[%clk 0:00:19]} 54. Qe3 {[%clk 0:00:23]}  Kf1 {[%clk 0:00:19]} 55. Qf3+ {[%clk 0:00:23]}  Ke1 {[%clk 0:00:18]} 56. Kxf6 {[%clk 0:00:23]}  Kd2 {[%clk 0:00:16]} 57. Qf2 {[%clk 0:00:23]}  Kd1 {[%clk 0:00:15]} 58. Kg7 {[%clk 0:00:23]}  h5 {[%clk 0:00:10]} 59. Kxg6 {[%clk 0:00:20]}  hxg4 {[%clk 0:00:09]} 60. hxg4 {[%clk 0:00:20]}  e1=Q {[%clk 0:00:08]} 61. Qxe1+ {[%clk 0:00:20]}  Kxe1 {[%clk 0:00:08]} 62. Kf6 {[%clk 0:00:20]} 1-0


[Site "https://www.chess.com"]

[Event "Titled Tuesday Blitz May 9 Early 2023"]
[White "Yaniuk, Volodymyr"]
[Black "Fernandez Siles, Luis"]
[WhiteFideId "14133083"]
[BlackFideId "2209420"]
[WhiteElo "2141"]
[BlackElo "2195"]
[Result "1-0"]
[Round "04"]
[TimeControl "180+2"]
[Date "2023.05.09"]
[WhiteClock "0:00:41"]
[BlackClock "0:00:00"]

1. d4 {[%clk 0:02:59]}  Nf6 {[%clk 0:02:59]} 2. c4 {[%clk 0:02:59]}  g6 {[%clk 0:03:00]} 3. Nc3 {[%clk 0:02:58]}  Bg7 {[%clk 0:03:00]} 4. e4 {[%clk 0:02:58]}  d6 {[%clk 0:03:00]} 5. Nf3 {[%clk 0:02:59]}  O-O {[%clk 0:03:01]} 6. Be2 {[%clk 0:02:59]}  c5 {[%clk 0:03:01]} 7. d5 {[%clk 0:02:56]}  e6 {[%clk 0:02:58]} 8. O-O {[%clk 0:02:54]}  exd5 {[%clk 0:02:57]} 9. cxd5 {[%clk 0:02:54]}  a6 {[%clk 0:02:57]} 10. a4 {[%clk 0:02:54]}  Bg4 {[%clk 0:02:57]} 11. Nd2 {[%clk 0:02:53]}  Bxe2 {[%clk 0:02:56]} 12. Qxe2 {[%clk 0:02:54]}  Nbd7 {[%clk 0:02:46]} 13. Nc4 {[%clk 0:02:52]}  Nb6 {[%clk 0:02:43]} 14. Na3 {[%clk 0:02:51]}  Re8 {[%clk 0:02:41]} 15. Qd3 {[%clk 0:02:48]}  Rc8 {[%clk 0:01:51]} 16. Bf4 {[%clk 0:02:40]}  c4 {[%clk 0:01:48]} 17. Qc2 {[%clk 0:02:36]}  Ng4 {[%clk 0:01:35]} 18. a5 {[%clk 0:02:28]}  Na8 {[%clk 0:01:34]} 19. Qa4 {[%clk 0:02:08]}  Bxc3 {[%clk 0:01:25]} 20. bxc3 {[%clk 0:02:09]}  Rxe4 {[%clk 0:01:25]} 21. Bg3 {[%clk 0:02:09]}  Ne5 {[%clk 0:01:16]} 22. Rab1 {[%clk 0:02:07]}  b5 {[%clk 0:00:59]} 23. axb6 {[%clk 0:02:05]}  Nxb6 {[%clk 0:00:59]} 24. Qc2 {[%clk 0:01:59]}  f5 {[%clk 0:00:52]} 25. Rfd1 {[%clk 0:01:49]}  Nbd7 {[%clk 0:00:33]} 26. f3 {[%clk 0:01:33]}  Re3 {[%clk 0:00:31]} 27. Bf2 {[%clk 0:01:33]}  Rd3 {[%clk 0:00:29]} 28. Bd4 {[%clk 0:01:26]}  Qa5 {[%clk 0:00:22]} 29. Ra1 {[%clk 0:01:16]}  Qxd5 {[%clk 0:00:20]} 30. Re1 {[%clk 0:01:08]}  f4 {[%clk 0:00:16]} 31. Re4 {[%clk 0:01:05]}  g5 {[%clk 0:00:16]} 32. Qa4 {[%clk 0:01:03]}  Rc7 {[%clk 0:00:10]} 33. Qxa6 {[%clk 0:00:58]}  Rxf3 {[%clk 0:00:10]} 34. Rae1 {[%clk 0:00:47]}  Rd3 {[%clk 0:00:08]} 35. Nb5 {[%clk 0:00:44]}  f3 {[%clk 0:00:06]} 36. Nxc7 {[%clk 0:00:42]}  f2+ {[%clk 0:00:00]} 37. Bxf2 {[%clk 0:00:41]} 1-0


[Site "https://www.chess.com"]

[Event "Titled Tuesday Blitz May 9 Early 2023"]
[White "Danielyan, Vahe"]
[Black "Hoffmann, Asa"]
[WhiteFideId "13304828"]
[BlackFideId "2001470"]
[WhiteElo "2423"]
[BlackElo "2117"]
[Result "1-0"]
[Round "04"]
[TimeControl "180+2"]
[Date "2023.05.09"]
[WhiteClock "0:01:48"]
[BlackClock "0:01:21"]

1. d4 {[%clk 0:03:00]}  Nf6 {[%clk 0:02:57]} 2. c4 {[%clk 0:03:01]}  c5 {[%clk 0:02:56]} 3. d5 {[%clk 0:03:01]}  e5 {[%clk 0:02:56]} 4. Nc3 {[%clk 0:03:00]}  d6 {[%clk 0:02:56]} 5. e4 {[%clk 0:03:01]}  Be7 {[%clk 0:02:56]} 6. h3 {[%clk 0:03:01]}  Nbd7 {[%clk 0:02:56]} 7. g4 {[%clk 0:03:01]}  Nf8 {[%clk 0:02:55]} 8. Bd3 {[%clk 0:03:01]}  Ng6 {[%clk 0:02:55]} 9. Nge2 {[%clk 0:03:02]}  h6 {[%clk 0:02:54]} 10. Qc2 {[%clk 0:03:01]}  Nh4 {[%clk 0:02:51]} 11. Ng1 {[%clk 0:02:53]}  a6 {[%clk 0:02:43]} 12. Be3 {[%clk 0:02:37]}  Nh7 {[%clk 0:02:38]} 13. O-O-O {[%clk 0:02:36]}  Bg5 {[%clk 0:02:37]} 14. Kb1 {[%clk 0:02:32]}  Qf6 {[%clk 0:02:37]} 15. Nge2 {[%clk 0:02:24]}  Nf3 {[%clk 0:02:34]} 16. Ng3 {[%clk 0:02:23]}  Nd4 {[%clk 0:02:32]} 17. Bxd4 {[%clk 0:02:21]}  cxd4 {[%clk 0:02:30]} 18. Na4 {[%clk 0:02:22]}  Bd7 {[%clk 0:02:28]} 19. Nb6 {[%clk 0:02:21]}  Rd8 {[%clk 0:02:28]} 20. Nh5 {[%clk 0:02:18]}  Qg6 {[%clk 0:02:23]} 21. f4 {[%clk 0:02:17]}  Bxf4 {[%clk 0:02:19]} 22. Nxf4 {[%clk 0:02:16]}  exf4 {[%clk 0:02:19]} 23. e5 {[%clk 0:02:17]}  Qg5 {[%clk 0:02:07]} 24. Bxh7 {[%clk 0:02:13]}  dxe5 {[%clk 0:02:04]} 25. Be4 {[%clk 0:02:08]}  O-O {[%clk 0:02:01]} 26. c5 {[%clk 0:02:06]}  f5 {[%clk 0:01:54]} 27. Nxd7 {[%clk 0:02:04]}  fxe4 {[%clk 0:01:51]} 28. Nxf8 {[%clk 0:02:03]}  d3 {[%clk 0:01:51]} 29. Qc4 {[%clk 0:02:03]}  Rxf8 {[%clk 0:01:43]} 30. Qxe4 {[%clk 0:02:02]}  f3 {[%clk 0:01:40]} 31. Rxd3 {[%clk 0:02:01]}  f2 {[%clk 0:01:40]} 32. Rf1 {[%clk 0:01:59]}  Rf4 {[%clk 0:01:37]} 33. Qe3 {[%clk 0:01:59]}  Qf6 {[%clk 0:01:36]} 34. d6 {[%clk 0:01:57]}  e4 {[%clk 0:01:36]} 35. d7 {[%clk 0:01:51]}  exd3 {[%clk 0:01:34]} 36. Qxf4 {[%clk 0:01:49]}  Qxf4 {[%clk 0:01:21]} 37. d8=Q+ {[%clk 0:01:48]} 1-0


[Site "https://www.chess.com"]